[Event "Titled Tuesday Blitz September 28 2021"]
[White "Sethuraman, S.P."]
[Black "Holt, Conrad"]
[WhiteFideId "5021596"]
[BlackFideId "2034387"]
[WhiteElo "2760"]
[BlackElo "2870"]
[Result "1-0"]
[Round "09"]
[TimeControl "180+1"]
[Date "2021.09.28"]
[WhiteClock "0:00:30"]
[BlackClock "0:00:02"]

1. d4 {[%clk 0:03:00]}  d5 {[%clk 0:02:58]} 2. c4 {[%clk 0:03:01]}  c6 {[%clk 0:02:58]} 3. Nf3 {[%clk 0:03:00]}  Nf6 {[%clk 0:02:58]} 4. e3 {[%clk 0:03:01]}  Bf5 {[%clk 0:02:58]} 5. Nc3 {[%clk 0:03:00]}  e6 {[%clk 0:02:58]} 6. Nh4 {[%clk 0:03:00]}  Bg6 {[%clk 0:02:58]} 7. Bd2 {[%clk 0:02:52]}  Nbd7 {[%clk 0:02:54]} 8. Nxg6 {[%clk 0:02:50]}  hxg6 {[%clk 0:02:53]} 9. Qc2 {[%clk 0:02:50]}  Bd6 {[%clk 0:02:50]} 10. O-O-O {[%clk 0:02:35]}  dxc4 {[%clk 0:02:47]} 11. Bxc4 {[%clk 0:02:34]}  b5 {[%clk 0:02:47]} 12. Be2 {[%clk 0:02:32]}  Qe7 {[%clk 0:02:28]} 13. Kb1 {[%clk 0:02:31]}  a6 {[%clk 0:02:23]} 14. e4 {[%clk 0:02:28]}  e5 {[%clk 0:02:19]} 15. dxe5 {[%clk 0:02:27]}  Bxe5 {[%clk 0:02:19]} 16. f4 {[%clk 0:02:26]}  Bxc3 {[%clk 0:02:20]} 17. Bxc3 {[%clk 0:02:26]}  O-O {[%clk 0:02:14]} 18. Bf3 {[%clk 0:02:21]}  Nb6 {[%clk 0:02:05]} 19. h4 {[%clk 0:02:17]}  Nc4 {[%clk 0:01:42]} 20. Qe2 {[%clk 0:02:16]}  Rad8 {[%clk 0:01:36]} 21. e5 {[%clk 0:01:48]}  Rxd1+ {[%clk 0:01:33]} 22. Rxd1 {[%clk 0:01:46]}  Nd5 {[%clk 0:01:33]} 23. Bxd5 {[%clk 0:01:45]}  cxd5 {[%clk 0:01:33]} 24. h5 {[%clk 0:01:46]}  Qh4 {[%clk 0:01:20]} 25. e6 {[%clk 0:01:27]}  Qe7 {[%clk 0:00:40]} 26. hxg6 {[%clk 0:01:09]}  Qxe6 {[%clk 0:00:38]} 27. Qxe6 {[%clk 0:01:08]}  fxe6 {[%clk 0:00:38]} 28. g3 {[%clk 0:01:09]}  Nd6 {[%clk 0:00:14]} 29. Be5 {[%clk 0:01:02]}  Nf5 {[%clk 0:00:13]} 30. Rd3 {[%clk 0:00:51]}  Re8 {[%clk 0:00:10]} 31. Ra3 {[%clk 0:00:50]}  Ra8 {[%clk 0:00:09]} 32. Rc3 {[%clk 0:00:46]}  d4 {[%clk 0:00:08]} 33. Rc7 {[%clk 0:00:46]}  Rd8 {[%clk 0:00:08]} 34. Kc1 {[%clk 0:00:46]}  d3 {[%clk 0:00:02]} 35. Kd2 {[%clk 0:00:45]}  Kf8 {[%clk 0:00:03]} 36. Rf7+ {[%clk 0:00:42]}  Ke8 {[%clk 0:00:03]} 37. g4 {[%clk 0:00:37]}  Ng3 {[%clk 0:00:03]} 38. Rxg7 {[%clk 0:00:35]}  Ne4+ {[%clk 0:00:02]} 39. Ke3 {[%clk 0:00:35]}  d2 {[%clk 0:00:03]} 40. Rg8+ {[%clk 0:00:35]}  Kd7 {[%clk 0:00:03]} 41. Rxd8+ {[%clk 0:00:35]}  Kxd8 {[%clk 0:00:03]} 42. Ke2 {[%clk 0:00:36]}  Ke8 {[%clk 0:00:03]} 43. f5 {[%clk 0:00:34]}  d1=Q+ {[%clk 0:00:02]} 44. Kxd1 {[%clk 0:00:34]}  Nf2+ {[%clk 0:00:03]} 45. Ke2 {[%clk 0:00:31]}  Nxg4 {[%clk 0:00:04]} 46. g7 {[%clk 0:00:30]}  Kf7 {[%clk 0:00:02]} 47. fxe6+ {[%clk 0:00:30]} 1-0


[Site "https://www.chess.com"]

[Event "Titled Tuesday Blitz September 28 2021"]
[White "Shkapenko, Pavel"]
[Black "Quispe Arteaga, Gabriel"]
[WhiteFideId "4151933"]
[BlackFideId "32059809"]
[WhiteElo "2386"]
[BlackElo "2192"]
[Result "1-0"]
[Round "09"]
[TimeControl "180+1"]
[Date "2021.09.28"]
[WhiteClock "0:01:26"]
[BlackClock "0:01:31"]

1. e4 {[%clk 0:03:00]}  c5 {[%clk 0:02:59]} 2. c3 {[%clk 0:02:52]}  d5 {[%clk 0:02:59]} 3. exd5 {[%clk 0:02:49]}  Qxd5 {[%clk 0:03:00]} 4. Nf3 {[%clk 0:02:49]}  Nf6 {[%clk 0:03:00]} 5. d4 {[%clk 0:02:49]}  Bg4 {[%clk 0:03:00]} 6. Be2 {[%clk 0:02:49]}  e6 {[%clk 0:03:00]} 7. O-O {[%clk 0:02:48]}  Be7 {[%clk 0:02:57]} 8. h3 {[%clk 0:02:48]}  Bh5 {[%clk 0:02:56]} 9. Be3 {[%clk 0:02:48]}  cxd4 {[%clk 0:02:56]} 10. cxd4 {[%clk 0:02:48]}  Nc6 {[%clk 0:02:55]} 11. Nc3 {[%clk 0:02:49]}  Qd6 {[%clk 0:02:56]} 12. a3 {[%clk 0:02:43]}  O-O {[%clk 0:02:55]} 13. Qb3 {[%clk 0:02:43]}  a6 {[%clk 0:02:52]} 14. Rfd1 {[%clk 0:02:43]}  Rfd8 {[%clk 0:02:50]} 15. Rac1 {[%clk 0:02:42]}  b5 {[%clk 0:02:48]} 16. d5 {[%clk 0:02:40]}  exd5 {[%clk 0:02:48]} 17. g4 {[%clk 0:02:39]}  Bg6 {[%clk 0:02:48]} 18. g5 {[%clk 0:02:39]}  Ne8 {[%clk 0:02:36]} 19. Nxd5 {[%clk 0:02:35]}  Be4 {[%clk 0:01:35]} 20. Nf6+ {[%clk 0:01:47]}  Qxf6 {[%clk 0:01:35]} 21. gxf6 {[%clk 0:01:45]}  Bxf6 {[%clk 0:01:36]} 22. Rxd8 {[%clk 0:01:42]}  Rxd8 {[%clk 0:01:35]} 23. Rd1 {[%clk 0:01:27]}  Rc8 {[%clk 0:01:31]} 24. Nd4 {[%clk 0:01:26]} 1-0


[Site "https://www.chess.com"]

[Event "Titled Tuesday Blitz September 28 2021"]
[White "Shuvalov, Evgenij"]
[Black "Zaichenko, Daria"]
[WhiteFideId "4187237"]
[BlackFideId "4197453"]
[WhiteElo "2129"]
[BlackElo "2039"]
[Result "1-0"]
[Round "09"]
[TimeControl "180+1"]
[Date "2021.09.28"]
[WhiteClock "0:01:04"]
[BlackClock "0:01:19"]

1. Nf3 {[%clk 0:02:48]}  Nf6 {[%clk 0:02:59]} 2. c4 {[%clk 0:02:47]}  e6 {[%clk 0:02:59]} 3. g3 {[%clk 0:02:47]}  d5 {[%clk 0:02:59]} 4. Bg2 {[%clk 0:02:47]}  Be7 {[%clk 0:02:59]} 5. O-O {[%clk 0:02:47]}  O-O {[%clk 0:02:59]} 6. b3 {[%clk 0:02:47]}  c5 {[%clk 0:02:57]} 7. Bb2 {[%clk 0:02:46]}  Nc6 {[%clk 0:02:57]} 8. e3 {[%clk 0:02:46]}  Qc7 {[%clk 0:02:54]} 9. Nc3 {[%clk 0:02:44]}  a6 {[%clk 0:02:52]} 10. cxd5 {[%clk 0:02:41]}  exd5 {[%clk 0:02:51]} 11. d4 {[%clk 0:02:40]}  cxd4 {[%clk 0:02:50]} 12. Nxd4 {[%clk 0:02:40]}  Be6 {[%clk 0:02:46]} 13. Rc1 {[%clk 0:02:39]}  Rfd8 {[%clk 0:02:41]} 14. Nxe6 {[%clk 0:02:32]}  fxe6 {[%clk 0:02:41]} 15. Ne2 {[%clk 0:02:32]}  Qd6 {[%clk 0:02:34]} 16. Nd4 {[%clk 0:02:16]}  e5 {[%clk 0:02:23]} 17. Nf5 {[%clk 0:02:15]}  Qc7 {[%clk 0:02:16]} 18. g4 {[%clk 0:01:47]}  g6 {[%clk 0:02:02]} 19. Nh6+ {[%clk 0:01:36]}  Kg7 {[%clk 0:02:00]} 20. g5 {[%clk 0:01:36]}  Ne4 {[%clk 0:01:54]} 21. f4 {[%clk 0:01:33]}  Qb6 {[%clk 0:01:39]} 22. Rxc6 {[%clk 0:01:26]}  bxc6 {[%clk 0:01:35]} 23. Bxe5+ {[%clk 0:01:26]}  Bf6 {[%clk 0:01:25]} 24. gxf6+ {[%clk 0:01:20]}  Kxh6 {[%clk 0:01:25]} 25. Qf3 {[%clk 0:01:16]}  g5 {[%clk 0:01:21]} 26. Qh3+ {[%clk 0:01:05]}  Kg6 {[%clk 0:01:19]} 27. f5+ {[%clk 0:01:04]}  Kf7 {[%clk 0:01:18]} 28. Qxh7+ {[%clk 0:01:05]}  Kf8 {[%clk 0:01:18]} 29. Qg7+ {[%clk 0:01:03]}  Ke8 {[%clk 0:01:19]} 30. Qe7# {[%clk 0:01:04]} 1-0


[Site "https://www.chess.com"]

[Event "Titled Tuesday Blitz September 28 2021"]
[White "Silvestre, Christian"]
[Black "Nozdrachev, Leonid"]
[WhiteFideId "30956269"]
[BlackFideId "24113433"]
[WhiteElo "2487"]
[BlackElo "2196"]
[Result "1-0"]
[Round "09"]
[TimeControl "180+1"]
[Date "2021.09.28"]
[WhiteClock "0:00:05"]
[BlackClock "0:00:01"]

1. Nf3 {[%clk 0:02:52]}  Nf6 {[%clk 0:02:59]} 2. d4 {[%clk 0:02:51]}  e6 {[%clk 0:02:58]} 3. Bf4 {[%clk 0:02:51]}  d5 {[%clk 0:02:56]} 4. e3 {[%clk 0:02:50]}  Bd6 {[%clk 0:02:55]} 5. Bg3 {[%clk 0:02:49]}  Ne4 {[%clk 0:02:54]} 6. Bd3 {[%clk 0:02:48]}  Nxg3 {[%clk 0:02:53]} 7. hxg3 {[%clk 0:02:48]}  h6 {[%clk 0:02:54]} 8. Nbd2 {[%clk 0:02:46]}  c5 {[%clk 0:02:51]} 9. c3 {[%clk 0:02:45]}  Nc6 {[%clk 0:02:50]} 10. Qe2 {[%clk 0:02:42]}  Bd7 {[%clk 0:02:45]} 11. dxc5 {[%clk 0:02:37]}  Bxc5 {[%clk 0:02:45]} 12. e4 {[%clk 0:02:37]}  O-O {[%clk 0:02:43]} 13. g4 {[%clk 0:02:35]}  f5 {[%clk 0:02:34]} 14. exf5 {[%clk 0:01:31]}  exf5 {[%clk 0:02:32]} 15. O-O-O {[%clk 0:01:30]}  Re8 {[%clk 0:02:29]} 16. Qf1 {[%clk 0:01:27]}  fxg4 {[%clk 0:02:29]} 17. Nh4 {[%clk 0:01:25]}  d4 {[%clk 0:02:27]} 18. Bc2 {[%clk 0:01:23]}  Be6 {[%clk 0:02:15]} 19. Qd3 {[%clk 0:01:19]}  dxc3 {[%clk 0:02:08]} 20. Qh7+ {[%clk 0:01:17]}  Kf8 {[%clk 0:02:07]} 21. Qh8+ {[%clk 0:00:59]}  Bg8 {[%clk 0:02:03]} 22. Ne4 {[%clk 0:00:49]}  cxb2+ {[%clk 0:01:58]} 23. Kb1 {[%clk 0:00:48]}  Bd4 {[%clk 0:01:53]} 24. Bb3 {[%clk 0:00:28]}  Ke7 {[%clk 0:01:43]} 25. Nf5+ {[%clk 0:00:27]}  Kd7 {[%clk 0:01:34]} 26. Nxd4 {[%clk 0:00:27]}  Bxb3 {[%clk 0:01:27]} 27. Qxg7+ {[%clk 0:00:26]}  Kc8 {[%clk 0:01:17]} 28. Nxb3 {[%clk 0:00:23]}  Qe7 {[%clk 0:00:53]} 29. Nd6+ {[%clk 0:00:22]}  Kc7 {[%clk 0:00:49]} 30. Nxe8+ {[%clk 0:00:22]}  Rxe8 {[%clk 0:00:50]} 31. Qxb2 {[%clk 0:00:18]}  Nb4 {[%clk 0:00:46]} 32. Ka1 {[%clk 0:00:17]}  Qe4 {[%clk 0:00:43]} 33. Rc1+ {[%clk 0:00:17]}  Kb8 {[%clk 0:00:43]} 34. Qc3 {[%clk 0:00:17]}  a5 {[%clk 0:00:36]} 35. Rhe1 {[%clk 0:00:17]}  Qxe1 {[%clk 0:00:35]} 36. Rxe1 {[%clk 0:00:17]}  Rxe1+ {[%clk 0:00:36]} 37. Kb2 {[%clk 0:00:16]}  Re2+ {[%clk 0:00:36]} 38. Kb1 {[%clk 0:00:15]}  Ka7 {[%clk 0:00:20]} 39. Qc5+ {[%clk 0:00:14]}  b6 {[%clk 0:00:19]} 40. Qc7+ {[%clk 0:00:12]}  Ka8 {[%clk 0:00:18]} 41. Qxb6 {[%clk 0:00:10]}  Re1+ {[%clk 0:00:16]} 42. Nc1 {[%clk 0:00:08]}  Re5 {[%clk 0:00:04]} 43. Qd8+ {[%clk 0:00:06]}  Kb7 {[%clk 0:00:04]} 44. Qd7+ {[%clk 0:00:06]}  Kb6 {[%clk 0:00:03]} 45. Qd2 {[%clk 0:00:06]}  Rb5 {[%clk 0:00:02]} 46. Qxh6+ {[%clk 0:00:07]}  Ka7 {[%clk 0:00:02]} 47. Nb3 {[%clk 0:00:07]}  a4 {[%clk 0:00:02]} 48. Qe3+ {[%clk 0:00:06]}  Rb6 {[%clk 0:00:01]} 49. Nc5 {[%clk 0:00:05]}  Nd5+ {[%clk 0:00:01]} 50. Kc2 {[%clk 0:00:02]}  Nxe3+ {[%clk 0:00:02]} 51. fxe3 {[%clk 0:00:03]}  Rf6 {[%clk 0:00:02]} 52. Kd3 {[%clk 0:00:03]}  Rf2 {[%clk 0:00:02]} 53. Nxa4 {[%clk 0:00:04]}  Rxg2 {[%clk 0:00:02]} 54. Nc5 {[%clk 0:00:05]}  g3 {[%clk 0:00:01]} 55. Ne4 {[%clk 0:00:05]} 1-0


[Site "https://www.chess.com"]

[Event "Titled Tuesday Blitz September 28 2021"]
[White "Siva Mahadevan"]
[Black "Yakubboev, Nodirbek"]
[WhiteFideId "25043153"]
[BlackFideId "14203987"]
[WhiteElo "2828"]
[BlackElo "2959"]
[Result "0-1"]
[Round "09"]
[TimeControl "180+1"]
[Date "2021.09.28"]
[WhiteClock "0:00:34"]
[BlackClock "0:00:19"]

1. e4 {[%clk 0:03:00]}  c6 {[%clk 0:02:56]} 2. d4 {[%clk 0:03:00]}  d5 {[%clk 0:02:56]} 3. e5 {[%clk 0:03:01]}  Bf5 {[%clk 0:02:56]} 4. c4 {[%clk 0:03:01]}  e6 {[%clk 0:02:55]} 5. Nc3 {[%clk 0:03:02]}  Ne7 {[%clk 0:02:53]} 6. Nge2 {[%clk 0:03:02]}  Nd7 {[%clk 0:02:13]} 7. Ng3 {[%clk 0:03:01]}  Bg6 {[%clk 0:02:13]} 8. h4 {[%clk 0:03:01]}  h6 {[%clk 0:02:08]} 9. h5 {[%clk 0:03:01]}  Bh7 {[%clk 0:02:09]} 10. cxd5 {[%clk 0:03:00]}  cxd5 {[%clk 0:01:53]} 11. Bd3 {[%clk 0:02:59]}  Bxd3 {[%clk 0:01:52]} 12. Qxd3 {[%clk 0:03:00]}  Nc6 {[%clk 0:01:38]} 13. Be3 {[%clk 0:02:58]}  a6 {[%clk 0:01:35]} 14. Rc1 {[%clk 0:02:54]}  Be7 {[%clk 0:01:30]} 15. f4 {[%clk 0:02:53]}  O-O {[%clk 0:01:28]} 16. f5 {[%clk 0:02:50]}  Bg5 {[%clk 0:01:27]} 17. O-O {[%clk 0:02:42]}  Ndxe5 {[%clk 0:01:10]} 18. dxe5 {[%clk 0:02:36]}  Bxe3+ {[%clk 0:01:10]} 19. Qxe3 {[%clk 0:02:37]}  d4 {[%clk 0:01:10]} 20. Qf4 {[%clk 0:02:36]}  dxc3 {[%clk 0:01:10]} 21. Rxc3 {[%clk 0:02:36]}  Qd4+ {[%clk 0:01:08]} 22. Qxd4 {[%clk 0:02:34]}  Nxd4 {[%clk 0:01:09]} 23. f6 {[%clk 0:02:30]}  Rac8 {[%clk 0:01:03]} 24. Rd3 {[%clk 0:02:25]}  Nc6 {[%clk 0:00:49]} 25. Ne4 {[%clk 0:02:23]}  Nxe5 {[%clk 0:00:49]} 26. Rg3 {[%clk 0:02:22]}  g6 {[%clk 0:00:49]} 27. Re1 {[%clk 0:02:20]}  Rfd8 {[%clk 0:00:47]} 28. Nc3 {[%clk 0:02:15]}  Nd3 {[%clk 0:00:44]} 29. Ree3 {[%clk 0:02:14]}  Nf4 {[%clk 0:00:43]} 30. hxg6 {[%clk 0:02:13]}  Nxg6 {[%clk 0:00:41]} 31. Rh3 {[%clk 0:01:52]}  Kh7 {[%clk 0:00:41]} 32. Rh5 {[%clk 0:01:52]}  Nf4 {[%clk 0:00:41]} 33. Rh4 {[%clk 0:01:51]}  Rd3 {[%clk 0:00:37]} 34. Rxd3 {[%clk 0:01:33]}  Nxd3 {[%clk 0:00:38]} 35. Ne4 {[%clk 0:01:34]}  Kg6 {[%clk 0:00:22]} 36. Rh3 {[%clk 0:01:28]}  Rc1+ {[%clk 0:00:22]} 37. Kh2 {[%clk 0:01:28]}  Ne5 {[%clk 0:00:22]} 38. Rg3+ {[%clk 0:01:14]}  Kf5 {[%clk 0:00:22]} 39. Nd6+ {[%clk 0:01:15]}  Kf4 {[%clk 0:00:20]} 40. Rg7 {[%clk 0:00:41]}  Ng4+ {[%clk 0:00:19]} 41. Rxg4+ {[%clk 0:00:41]}  Kxg4 {[%clk 0:00:20]} 42. Nxf7 {[%clk 0:00:42]}  Kf5 {[%clk 0:00:21]} 43. Nxh6+ {[%clk 0:00:39]}  Kxf6 {[%clk 0:00:21]} 44. Ng4+ {[%clk 0:00:40]}  Kg5 {[%clk 0:00:21]} 45. Nf2 {[%clk 0:00:36]}  Rc2 {[%clk 0:00:21]} 46. Nd3 {[%clk 0:00:36]}  Kf5 {[%clk 0:00:19]} 47. Kg3 {[%clk 0:00:36]}  e5 {[%clk 0:00:19]} 48. a4 {[%clk 0:00:34]}  e4 {[%clk 0:00:19]} 0-1


[Site "https://www.chess.com"]

[Event "Titled Tuesday Blitz September 28 2021"]
[White "Svane, Rasmus"]
[Black "Azarov, Sergei"]
[WhiteFideId "4657101"]
[BlackFideId "13501470"]
[WhiteElo "2898"]
[BlackElo "2793"]
[Result "0-1"]
[Round "09"]
[TimeControl "180+1"]
[Date "2021.09.28"]
[WhiteClock "0:00:02"]
[BlackClock "0:00:11"]

1. Nf3 {[%clk 0:03:00]}  f5 {[%clk 0:02:59]} 2. d3 {[%clk 0:03:00]}  d6 {[%clk 0:02:55]} 3. e4 {[%clk 0:03:01]}  e5 {[%clk 0:02:55]} 4. Nc3 {[%clk 0:03:01]}  Nc6 {[%clk 0:02:49]} 5. exf5 {[%clk 0:02:57]}  Bxf5 {[%clk 0:02:48]} 6. d4 {[%clk 0:02:58]}  exd4 {[%clk 0:02:27]} 7. Nxd4 {[%clk 0:02:59]}  Nxd4 {[%clk 0:02:26]} 8. Qxd4 {[%clk 0:02:59]}  Nf6 {[%clk 0:02:25]} 9. Qb4 {[%clk 0:02:29]}  Be7 {[%clk 0:01:56]} 10. Qxb7 {[%clk 0:02:24]}  O-O {[%clk 0:01:56]} 11. Bc4+ {[%clk 0:02:23]}  Kh8 {[%clk 0:01:55]} 12. O-O {[%clk 0:02:23]}  Bxc2 {[%clk 0:01:53]} 13. b3 {[%clk 0:01:58]}  d5 {[%clk 0:01:47]} 14. Bxd5 {[%clk 0:01:04]}  Rb8 {[%clk 0:01:27]} 15. Qc6 {[%clk 0:01:02]}  Bb4 {[%clk 0:01:00]} 16. Bb2 {[%clk 0:00:46]}  Bd3 {[%clk 0:00:52]} 17. Rfd1 {[%clk 0:00:42]}  Rb6 {[%clk 0:00:50]} 18. Qa4 {[%clk 0:00:24]}  Bxc3 {[%clk 0:00:50]} 19. Bxc3 {[%clk 0:00:23]}  Qxd5 {[%clk 0:00:50]} 20. Qd4 {[%clk 0:00:05]}  Rd6 {[%clk 0:00:39]} 21. Rxd3 {[%clk 0:00:04]}  Qb5 {[%clk 0:00:30]} 22. Qxd6 {[%clk 0:00:03]}  cxd6 {[%clk 0:00:29]} 23. Rad1 {[%clk 0:00:04]}  Ne4 {[%clk 0:00:27]} 24. Bd4 {[%clk 0:00:03]}  d5 {[%clk 0:00:24]} 25. f3 {[%clk 0:00:04]}  Nf6 {[%clk 0:00:23]} 26. Bxf6 {[%clk 0:00:03]}  Rxf6 {[%clk 0:00:23]} 27. Rxd5 {[%clk 0:00:04]}  Qb6+ {[%clk 0:00:23]} 28. Kf1 {[%clk 0:00:04]}  h6 {[%clk 0:00:24]} 29. R5d3 {[%clk 0:00:04]}  Rc6 {[%clk 0:00:23]} 30. R1d2 {[%clk 0:00:04]}  Rc1+ {[%clk 0:00:23]} 31. Rd1 {[%clk 0:00:04]}  Rc2 {[%clk 0:00:18]} 32. R3d2 {[%clk 0:00:05]}  Qc5 {[%clk 0:00:17]} 33. Rxc2 {[%clk 0:00:03]}  Qxc2 {[%clk 0:00:17]} 34. Re1 {[%clk 0:00:04]}  Qxa2 {[%clk 0:00:17]} 35. Re3 {[%clk 0:00:04]}  Qb1+ {[%clk 0:00:18]} 36. Kf2 {[%clk 0:00:05]}  Qc2+ {[%clk 0:00:18]} 37. Kg3 {[%clk 0:00:05]}  Qd2 {[%clk 0:00:18]} 38. Re4 {[%clk 0:00:04]}  Qg5+ {[%clk 0:00:18]} 39. Kf2 {[%clk 0:00:04]}  Qd2+ {[%clk 0:00:18]} 40. Kg3 {[%clk 0:00:05]}  Qd6+ {[%clk 0:00:17]} 41. Kh3 {[%clk 0:00:04]}  Qd7+ {[%clk 0:00:13]} 42. Kg3 {[%clk 0:00:04]}  Qc7+ {[%clk 0:00:13]} 43. Kh3 {[%clk 0:00:05]}  Qc8+ {[%clk 0:00:14]} 44. Kg3 {[%clk 0:00:05]}  Qb8+ {[%clk 0:00:14]} 45. Kg4 {[%clk 0:00:02]}  Qxb3 {[%clk 0:00:14]} 46. Kf5 {[%clk 0:00:02]}  a5 {[%clk 0:00:13]} 47. Kg6 {[%clk 0:00:01]}  Qb6+ {[%clk 0:00:13]} 48. Kf7 {[%clk 0:00:01]}  Qf6+ {[%clk 0:00:12]} 49. Ke8 {[%clk 0:00:02]}  a4 {[%clk 0:00:12]} 50. f4 {[%clk 0:00:02]}  Qc6+ {[%clk 0:00:12]} 51. Kf7 {[%clk 0:00:03]}  Qxe4 {[%clk 0:00:12]} 52. f5 {[%clk 0:00:02]}  Qxf5+ {[%clk 0:00:11]} 0-1


[Site "https://www.chess.com"]

[Event "Titled Tuesday Blitz September 28 2021"]
[White "Sychev, Klementy"]
[Black "Bluebaum, Matthias"]
[WhiteFideId "4114060"]
[BlackFideId "24651516"]
[WhiteElo "2805"]
[BlackElo "2899"]
[Result "0-1"]
[Round "09"]
[TimeControl "180+1"]
[Date "2021.09.28"]
[WhiteClock "0:00:02"]
[BlackClock "0:00:05"]

1. b3 {[%clk 0:03:00]}  d5 {[%clk 0:02:57]} 2. Bb2 {[%clk 0:03:00]}  Bf5 {[%clk 0:02:52]} 3. g3 {[%clk 0:02:50]}  Nc6 {[%clk 0:02:43]} 4. Nf3 {[%clk 0:02:47]}  Qd7 {[%clk 0:02:43]} 5. d3 {[%clk 0:02:43]}  Nf6 {[%clk 0:02:40]} 6. Nbd2 {[%clk 0:02:41]}  O-O-O {[%clk 0:02:40]} 7. Bg2 {[%clk 0:02:33]}  Bh3 {[%clk 0:02:37]} 8. O-O {[%clk 0:02:33]}  Bxg2 {[%clk 0:02:23]} 9. Kxg2 {[%clk 0:02:33]}  h5 {[%clk 0:02:24]} 10. h3 {[%clk 0:01:57]}  e6 {[%clk 0:01:54]} 11. c4 {[%clk 0:01:57]}  Bd6 {[%clk 0:01:43]} 12. a3 {[%clk 0:01:53]}  h4 {[%clk 0:01:37]} 13. Nxh4 {[%clk 0:01:30]}  e5 {[%clk 0:01:21]} 14. Rh1 {[%clk 0:01:20]}  Rh7 {[%clk 0:01:05]} 15. e3 {[%clk 0:01:04]}  Rdh8 {[%clk 0:01:01]} 16. Qf3 {[%clk 0:01:00]}  Ne7 {[%clk 0:00:46]} 17. c5 {[%clk 0:00:49]}  Bxc5 {[%clk 0:00:46]} 18. Bxe5 {[%clk 0:00:50]}  Bd6 {[%clk 0:00:44]} 19. Bxd6 {[%clk 0:00:34]}  Qxd6 {[%clk 0:00:44]} 20. b4 {[%clk 0:00:34]}  Qe6 {[%clk 0:00:43]} 21. Nb3 {[%clk 0:00:26]}  Rxh4 {[%clk 0:00:34]} 22. Nc5 {[%clk 0:00:24]}  Qe5 {[%clk 0:00:20]} 23. gxh4 {[%clk 0:00:24]}  Ng6 {[%clk 0:00:18]} 24. d4 {[%clk 0:00:13]}  Nxh4+ {[%clk 0:00:18]} 25. Kf1 {[%clk 0:00:14]}  Qe7 {[%clk 0:00:14]} 26. Qf4 {[%clk 0:00:12]}  b6 {[%clk 0:00:13]} 27. Nd3 {[%clk 0:00:12]}  g5 {[%clk 0:00:09]} 28. Qe5 {[%clk 0:00:09]}  Qd8 {[%clk 0:00:05]} 29. Rg1 {[%clk 0:00:08]}  Kb8 {[%clk 0:00:04]} 30. Ke2 {[%clk 0:00:05]}  Ne4 {[%clk 0:00:04]} 31. f3 {[%clk 0:00:03]}  f6 {[%clk 0:00:05]} 32. Qh2 {[%clk 0:00:03]}  Nc3+ {[%clk 0:00:05]} 33. Kf2 {[%clk 0:00:03]}  Qe8 {[%clk 0:00:04]} 34. Rgc1 {[%clk 0:00:03]}  Qh5 {[%clk 0:00:04]} 35. Qg3 {[%clk 0:00:03]}  Nb5 {[%clk 0:00:04]} 36. a4 {[%clk 0:00:03]}  Nd6 {[%clk 0:00:04]} 37. b5 {[%clk 0:00:03]}  Nhf5 {[%clk 0:00:05]} 38. Qg4 {[%clk 0:00:03]}  Qf7 {[%clk 0:00:04]} 39. Nb4 {[%clk 0:00:03]}  Rh4 {[%clk 0:00:05]} 40. Nc6+ {[%clk 0:00:02]}  Kc8 {[%clk 0:00:04]} 41. Qg2 {[%clk 0:00:02]}  Qh7 {[%clk 0:00:04]} 42. a5 {[%clk 0:00:02]}  Kd7 {[%clk 0:00:05]} 43. axb6 {[%clk 0:00:02]}  axb6 {[%clk 0:00:06]} 44. Ra8 {[%clk 0:00:02]}  Ke6 {[%clk 0:00:05]} 0-1


[Site "https://www.chess.com"]

[Event "Titled Tuesday Blitz September 28 2021"]
[White "Tang, Andrew"]
[Black "Fier, Alexandr"]
[WhiteFideId "2059630"]
[BlackFideId "2107139"]
[WhiteElo "2967"]
[BlackElo "2816"]
[Result "1-0"]
[Round "09"]
[TimeControl "180+1"]
[Date "2021.09.28"]
[WhiteClock "0:00:07"]
[BlackClock "0:00:14"]

1. d4 {[%clk 0:03:00]}  Nf6 {[%clk 0:03:00]} 2. c4 {[%clk 0:02:58]}  c5 {[%clk 0:03:00]} 3. d5 {[%clk 0:02:59]}  e6 {[%clk 0:03:01]} 4. Nc3 {[%clk 0:02:59]}  exd5 {[%clk 0:03:01]} 5. cxd5 {[%clk 0:03:00]}  d6 {[%clk 0:03:01]} 6. e4 {[%clk 0:03:00]}  g6 {[%clk 0:03:02]} 7. Nge2 {[%clk 0:02:59]}  Bg7 {[%clk 0:02:59]} 8. Ng3 {[%clk 0:03:00]}  h5 {[%clk 0:02:59]} 9. Be2 {[%clk 0:03:00]}  h4 {[%clk 0:02:59]} 10. Nf1 {[%clk 0:03:00]}  Nbd7 {[%clk 0:02:51]} 11. Bg5 {[%clk 0:02:59]}  Qb6 {[%clk 0:02:47]} 12. Qd2 {[%clk 0:02:56]}  h3 {[%clk 0:02:41]} 13. g4 {[%clk 0:02:50]}  Nh7 {[%clk 0:02:39]} 14. Bf4 {[%clk 0:02:42]}  a6 {[%clk 0:02:36]} 15. Ne3 {[%clk 0:02:38]}  Ne5 {[%clk 0:02:36]} 16. Bg3 {[%clk 0:02:30]}  g5 {[%clk 0:02:33]} 17. Bxe5 {[%clk 0:02:07]}  Bxe5 {[%clk 0:02:25]} 18. Nc4 {[%clk 0:02:07]}  Qd8 {[%clk 0:02:25]} 19. Nxe5 {[%clk 0:02:07]}  dxe5 {[%clk 0:02:25]} 20. Qe3 {[%clk 0:02:08]}  Qd6 {[%clk 0:02:23]} 21. Na4 {[%clk 0:02:00]}  Nf6 {[%clk 0:02:14]} 22. Rg1 {[%clk 0:01:44]}  Nd7 {[%clk 0:02:12]} 23. Qxg5 {[%clk 0:01:42]}  b5 {[%clk 0:02:12]} 24. Nc3 {[%clk 0:01:41]}  c4 {[%clk 0:02:11]} 25. Nd1 {[%clk 0:01:21]}  Nc5 {[%clk 0:02:10]} 26. f3 {[%clk 0:01:22]}  f6 {[%clk 0:01:46]} 27. Qe3 {[%clk 0:01:15]}  Bd7 {[%clk 0:01:43]} 28. Rc1 {[%clk 0:01:14]}  Rc8 {[%clk 0:01:42]} 29. Rg3 {[%clk 0:01:06]}  Ke7 {[%clk 0:01:34]} 30. Nf2 {[%clk 0:01:03]}  Na4 {[%clk 0:01:33]} 31. Qd2 {[%clk 0:01:00]}  Qb6 {[%clk 0:01:26]} 32. Kf1 {[%clk 0:00:59]}  Qd4 {[%clk 0:01:25]} 33. Rc2 {[%clk 0:00:47]}  Qxd2 {[%clk 0:00:57]} 34. Rxd2 {[%clk 0:00:47]}  b4 {[%clk 0:00:57]} 35. b3 {[%clk 0:00:36]}  cxb3 {[%clk 0:00:55]} 36. axb3 {[%clk 0:00:36]}  Nc5 {[%clk 0:00:55]} 37. Bc4 {[%clk 0:00:34]}  Bb5 {[%clk 0:00:46]} 38. Bxb5 {[%clk 0:00:34]}  axb5 {[%clk 0:00:47]} 39. f4 {[%clk 0:00:18]}  exf4 {[%clk 0:00:45]} 40. Rf3 {[%clk 0:00:19]}  Ra8 {[%clk 0:00:43]} 41. Rc2 {[%clk 0:00:16]}  Rhc8 {[%clk 0:00:37]} 42. Nxh3 {[%clk 0:00:15]}  Nxe4 {[%clk 0:00:33]} 43. Re2 {[%clk 0:00:15]}  Rc3 {[%clk 0:00:26]} 44. Rxe4+ {[%clk 0:00:15]}  Kd6 {[%clk 0:00:27]} 45. Rexf4 {[%clk 0:00:14]}  Ra2 {[%clk 0:00:25]} 46. Nf2 {[%clk 0:00:13]}  Kxd5 {[%clk 0:00:24]} 47. Kg2 {[%clk 0:00:12]}  Kc5 {[%clk 0:00:22]} 48. Kg3 {[%clk 0:00:12]}  Rcc2 {[%clk 0:00:20]} 49. Rxf6 {[%clk 0:00:10]}  Ra1 {[%clk 0:00:18]} 50. Nd3+ {[%clk 0:00:07]}  Kd4 {[%clk 0:00:18]} 51. Rd6+ {[%clk 0:00:06]}  Ke4 {[%clk 0:00:17]} 52. Re6+ {[%clk 0:00:04]}  Kd4 {[%clk 0:00:17]} 53. Rd6+ {[%clk 0:00:04]}  Ke4 {[%clk 0:00:17]} 54. Nf2+ {[%clk 0:00:05]}  Ke5 {[%clk 0:00:17]} 55. Rdd3 {[%clk 0:00:05]}  Rcc1 {[%clk 0:00:17]} 56. Rfe3+ {[%clk 0:00:05]}  Kf6 {[%clk 0:00:17]} 57. Rd6+ {[%clk 0:00:05]}  Kf7 {[%clk 0:00:17]} 58. Rd5 {[%clk 0:00:06]}  Rg1+ {[%clk 0:00:17]} 59. Kf4 {[%clk 0:00:06]}  Rg2 {[%clk 0:00:16]} 60. Rf3 {[%clk 0:00:07]}  Rxh2 {[%clk 0:00:15]} 61. Rxb5 {[%clk 0:00:07]}  Ra6 {[%clk 0:00:14]} 62. Kg3+ {[%clk 0:00:07]} 1-0


[Site "https://www.chess.com"]